[Event "*** Titled Tuesday Blitz AM"]
[Site "Chess.com"]
[Date "2020.01.07"]
[Round "5"]
[White "esskeettit"]
[Black "NewBornNow"]
[Result "1-0"]
[WhiteElo "2469"]
[BlackElo "2671"]
[TimeControl "180+2"]
[EndTime "10:06:46 PST"]
[Termination "esskeettit won by checkmate"]

1. d4 {[%clk 0:03:01.9]} 1... d6 {[%clk 0:03:00.9]} 2. Nf3 {[%clk 0:02:58.2]}
2... Nf6 {[%clk 0:03:01.4]} 3. c4 {[%clk 0:02:50.1]} 3... g6 {[%clk 0:03:01.1]}
4. Nc3 {[%clk 0:02:50.3]} 4... Bf5 {[%clk 0:03:01.6]} 5. Nh4 {[%clk 0:02:18.7]}
5... Bd7 {[%clk 0:03:00.3]} 6. e4 {[%clk 0:02:17.9]} 6... Bg7 {[%clk 0:02:56]}
7. Be2 {[%clk 0:02:14.8]} 7... e5 {[%clk 0:02:55.3]} 8. Be3 {[%clk 0:02:14.3]}
8... exd4 {[%clk 0:02:49.3]} 9. Bxd4 {[%clk 0:02:07.9]} 9... Nc6 {[%clk
0:02:48.5]} 10. Nf3 {[%clk 0:01:52.5]} 10... Nxd4 {[%clk 0:02:47.4]} 11. Nxd4
{[%clk 0:01:54.4]} 11... O-O {[%clk 0:02:47.8]} 12. O-O {[%clk 0:01:55.1]} 12...
Re8 {[%clk 0:02:48.3]} 13. f3 {[%clk 0:01:55.6]} 13... c6 {[%clk 0:02:49.3]} 14.
Kh1 {[%clk 0:01:53.5]} 14... Qb6 {[%clk 0:02:47.1]} 15. Nb3 {[%clk 0:01:52.6]}
15... Qc7 {[%clk 0:02:39.1]} 16. Qd2 {[%clk 0:01:43.8]} 16... Rad8 {[%clk
0:02:38.8]} 17. Rad1 {[%clk 0:01:38.7]} 17... Bc8 {[%clk 0:02:39.5]} 18. Qf4
{[%clk 0:01:20.6]} 18... Nh5 {[%clk 0:02:36.5]} 19. Qh4 {[%clk 0:01:16.6]} 19...
f5 {[%clk 0:02:33.8]} 20. c5 {[%clk 0:00:41.2]} 20... dxc5 {[%clk 0:01:57.7]}
21. Bc4+ {[%clk 0:00:38.6]} 21... Kh8 {[%clk 0:01:57.7]} 22. Nxc5 {[%clk
0:00:35.8]} 22... Bf6 {[%clk 0:01:43.4]} 23. Qf2 {[%clk 0:00:34.1]} 23... Rxd1
{[%clk 0:01:34.3]} 24. Rxd1 {[%clk 0:00:34.3]} 24... b6 {[%clk 0:01:28.3]} 25.
Nd3 {[%clk 0:00:25.8]} 25... Nf4 {[%clk 0:01:26.1]} 26. Nxf4 {[%clk 0:00:21.4]}
26... Qxf4 {[%clk 0:01:25.5]} 27. Ne2 {[%clk 0:00:18.7]} 27... Qe5 {[%clk
0:01:21.8]} 28. Nc3 {[%clk 0:00:16.8]} 28... fxe4 {[%clk 0:01:14.7]} 29. Nxe4
{[%clk 0:00:16.8]} 29... Qxb2 {[%clk 0:01:09]} 30. Qg3 {[%clk 0:00:10.9]} 30...
Be5 {[%clk 0:00:53.7]} 31. Qh4 {[%clk 0:00:11.7]} 31... Qc2 {[%clk 0:00:49.4]}
32. Bb3 {[%clk 0:00:12.5]} 32... Qe2 {[%clk 0:00:39.5]} 33. Ng5 {[%clk
0:00:13.1]} 33... h5 {[%clk 0:00:35.3]} 34. Nf7+ {[%clk 0:00:13.8]} 34... Kg7
{[%clk 0:00:35.6]} 35. Qg5 {[%clk 0:00:11.5]} 35... Bf6 {[%clk 0:00:33.7]} 36.
Qc1 {[%clk 0:00:12.5]} 36... Bf5 {[%clk 0:00:26.4]} 37. Qh6+ {[%clk 0:00:12.9]}
37... Kg8 {[%clk 0:00:26.1]} 38. Ng5+ {[%clk 0:00:14]} 38... Re6 {[%clk
0:00:24.1]} 39. Qh7+ {[%clk 0:00:14.1]} 39... Kf8 {[%clk 0:00:23.8]} 40. Qf7#
{[%clk 0:00:15.7]} 1-0

[Event "*** Titled Tuesday Blitz AM"]
[Site "Chess.com"]
[Date "2020.01.07"]
[Round "5"]
[White "Blagorod"]
[Black "Region_07"]
[Result "0-1"]
[WhiteElo "2114"]
[BlackElo "2374"]
[TimeControl "180+2"]
[EndTime "10:06:51 PST"]
[Termination "Region_07 won by checkmate"]

1. e4 {[%clk 0:03:01.9]} 1... Nc6 {[%clk 0:02:55.4]} 2. Nf3 {[%clk 0:03:00.8]}
2... d6 {[%clk 0:02:54.6]} 3. d4 {[%clk 0:02:58.8]} 3... Nf6 {[%clk 0:02:53.8]}
4. Nc3 {[%clk 0:02:51.6]} 4... g6 {[%clk 0:02:52.9]} 5. d5 {[%clk 0:02:38.2]}
5... Nb8 {[%clk 0:02:53]} 6. h3 {[%clk 0:02:24.6]} 6... Bg7 {[%clk 0:02:52.9]}
7. Be3 {[%clk 0:02:22.1]} 7... O-O {[%clk 0:02:49.7]} 8. Bd3 {[%clk 0:02:20]}
8... c6 {[%clk 0:02:42.1]} 9. Qd2 {[%clk 0:02:13.9]} 9... cxd5 {[%clk
0:02:33.6]} 10. exd5 {[%clk 0:02:14.7]} 10... Qa5 {[%clk 0:02:33.3]} 11. Bc4
{[%clk 0:01:47.9]} 11... Nbd7 {[%clk 0:02:30.5]} 12. O-O {[%clk 0:01:08.2]}
12... Nb6 {[%clk 0:02:28.6]} 13. Bxb6 {[%clk 0:01:09.2]} 13... Qxb6 {[%clk
0:02:28.2]} 14. Rfe1 {[%clk 0:01:08.5]} 14... Re8 {[%clk 0:02:19.1]} 15. Bb3
{[%clk 0:01:07.7]} 15... Bf5 {[%clk 0:02:10.3]} 16. Re2 {[%clk 0:01:05]} 16...
Nd7 {[%clk 0:02:07.5]} 17. Rae1 {[%clk 0:00:52.7]} 17... Ne5 {[%clk 0:02:05.8]}
18. Nxe5 {[%clk 0:00:35.1]} 18... Bxe5 {[%clk 0:02:07.7]} 19. Kh1 {[%clk
0:00:35.5]} 19... Rac8 {[%clk 0:02:04.5]} 20. f4 {[%clk 0:00:32.1]} 20... Bf6
{[%clk 0:02:01.1]} 21. g4 {[%clk 0:00:28.3]} 21... Bd7 {[%clk 0:01:58.6]} 22. g5
{[%clk 0:00:22.8]} 22... Bg7 {[%clk 0:01:33.4]} 23. Rxe7 {[%clk 0:00:18.9]}
23... Rxe7 {[%clk 0:01:34.6]} 24. Rxe7 {[%clk 0:00:19.4]} 24... Bxh3 {[%clk
0:01:35.2]} 25. Qe2 {[%clk 0:00:18.8]} 25... Bf5 {[%clk 0:01:22.5]} 26. Ne4
{[%clk 0:00:15.1]} 26... Qd4 {[%clk 0:01:16.3]} 27. Nxd6 {[%clk 0:00:10]} 27...
Rf8 {[%clk 0:01:09.1]} 28. Nxf5 {[%clk 0:00:09.8]} 28... gxf5 {[%clk 0:01:10.1]}
29. Qe3 {[%clk 0:00:08.5]} 29... Qd1+ {[%clk 0:01:05.9]} 30. Kh2 {[%clk
0:00:08]} 30... Bd4 {[%clk 0:01:07]} 31. Qg3 {[%clk 0:00:05.9]} 31... Qd2+
{[%clk 0:01:01.8]} 32. Kh3 {[%clk 0:00:06.7]} 32... Bf2 {[%clk 0:01:01.3]} 33.
Qf3 {[%clk 0:00:06.3]} 33... Bc5 {[%clk 0:00:54.8]} 34. Rxb7 {[%clk 0:00:05.2]}
34... Bd6 {[%clk 0:00:54]} 35. Rd7 {[%clk 0:00:05]} 35... Bxf4 {[%clk
0:00:54.7]} 36. Qg2 {[%clk 0:00:05]} 36... Qe3+ {[%clk 0:00:53.8]} 37. Kh4
{[%clk 0:00:06.2]} 37... Qd4 {[%clk 0:00:39.5]} 38. Kh3 {[%clk 0:00:06.5]} 38...
Re8 {[%clk 0:00:35.8]} 39. g6 {[%clk 0:00:02.2]} 39... Re3+ {[%clk 0:00:36.1]}
40. Kh4 {[%clk 0:00:03.7]} 40... Bg3+ {[%clk 0:00:37.1]} 41. Kh5 {[%clk
0:00:04.6]} 41... Qh4# {[%clk 0:00:36.6]} 0-1

[Event "*** Titled Tuesday Blitz AM"]
[Site "Chess.com"]
[Date "2020.01.07"]
[Round "5"]
[White "AquivaRubinstein"]
[Black "LLRChess"]
[Result "1-0"]
[WhiteElo "2431"]
[BlackElo "2302"]
[TimeControl "180+2"]
[EndTime "10:06:52 PST"]
[Termination "AquivaRubinstein won by resignation"]

1. e4 {[%clk 0:03:01.9]} 1... c5 {[%clk 0:03:00.1]} 2. Nf3 {[%clk 0:03:02.6]}
2... d6 {[%clk 0:03:01.1]} 3. Bb5+ {[%clk 0:03:02.6]} 3... Nd7 {[%clk
0:03:01.7]} 4. O-O {[%clk 0:03:02.2]} 4... a6 {[%clk 0:03:02.8]} 5. Bxd7+ {[%clk
0:03:02.8]} 5... Bxd7 {[%clk 0:03:04]} 6. d4 {[%clk 0:03:03.6]} 6... cxd4 {[%clk
0:03:04.6]} 7. Qxd4 {[%clk 0:03:04.3]} 7... e5 {[%clk 0:03:06]} 8. Qe3 {[%clk
0:03:00.6]} 8... h6 {[%clk 0:03:07.3]} 9. Nc3 {[%clk 0:02:53.4]} 9... Nf6 {[%clk
0:03:07.8]} 10. Rd1 {[%clk 0:02:53]} 10... Be7 {[%clk 0:03:06.5]} 11. Nd2 {[%clk
0:02:52.9]} 11... Be6 {[%clk 0:03:02.3]} 12. Qd3 {[%clk 0:02:48.2]} 12... Rc8
{[%clk 0:03:01]} 13. Nf1 {[%clk 0:02:43.5]} 13... O-O {[%clk 0:02:57.4]} 14. Ne3
{[%clk 0:02:44.2]} 14... Nd7 {[%clk 0:02:48.3]} 15. Ned5 {[%clk 0:02:28.1]}
15... Rc6 {[%clk 0:02:35.3]} 16. Be3 {[%clk 0:02:17.5]} 16... f5 {[%clk
0:02:27.8]} 17. f3 {[%clk 0:02:10.5]} 17... g5 {[%clk 0:02:07.6]} 18. exf5
{[%clk 0:01:26.9]} 18... Bxf5 {[%clk 0:02:05]} 19. Ne4 {[%clk 0:01:28.4]} 19...
Rf7 {[%clk 0:01:46.7]} 20. Qb3 {[%clk 0:01:14.9]} 20... Bf8 {[%clk 0:01:31.1]}
21. c3 {[%clk 0:00:57.9]} 21... b5 {[%clk 0:01:25.8]} 22. Nb4 {[%clk 0:00:55.8]}
22... Bxe4 {[%clk 0:01:17.7]} 23. fxe4 {[%clk 0:00:57]} 23... Rc4 {[%clk
0:01:17.3]} 24. Rf1 {[%clk 0:00:53.9]} 24... a5 {[%clk 0:01:10.7]} 25. Nd5
{[%clk 0:00:52.3]} 25... a4 {[%clk 0:00:54.4]} 26. Qxb5 {[%clk 0:00:47.9]} 26...
Rxe4 {[%clk 0:00:55]} 27. Rxf7 {[%clk 0:00:47.7]} 27... Kxf7 {[%clk 0:00:55]}
28. Rf1+ {[%clk 0:00:48.8]} 28... Kg7 {[%clk 0:00:50.6]} 29. Qd3 {[%clk
0:00:34.3]} 29... Rh4 {[%clk 0:00:48]} 30. Qf5 {[%clk 0:00:33.6]} 30... Qe8
{[%clk 0:00:18.8]} 31. Nc7 {[%clk 0:00:33.7]} 31... Qe7 {[%clk 0:00:19.9]} 32.
Ne6+ {[%clk 0:00:32.5]} 32... Kg8 {[%clk 0:00:21]} 33. g3 {[%clk 0:00:26.8]}
33... Rc4 {[%clk 0:00:19.5]} 34. Qg6+ {[%clk 0:00:21]} 34... Bg7 {[%clk
0:00:18.3]} 35. Nxg7 {[%clk 0:00:19.4]} 35... Qxg7 {[%clk 0:00:19.1]} 36. Qe6+
{[%clk 0:00:20.4]} 1-0

[Event "*** Titled Tuesday Blitz AM"]
[Site "Chess.com"]
[Date "2020.01.07"]
[Round "5"]
[White "RaunakSadhwani2005"]
[Black "Mr_Sinigami"]
[Result "1-0"]
[WhiteElo "2767"]
[BlackElo "2544"]
[TimeControl "180+2"]
[EndTime "10:06:56 PST"]
[Termination "RaunakSadhwani2005 won by resignation"]

1. d4 {[%clk 0:03:01.5]} 1... Nf6 {[%clk 0:03:00.2]} 2. Nc3 {[%clk 0:03:02.8]}
2... d5 {[%clk 0:03:00]} 3. Bf4 {[%clk 0:03:04.3]} 3... a6 {[%clk 0:02:59.8]} 4.
e3 {[%clk 0:03:04]} 4... Bf5 {[%clk 0:02:59.4]} 5. f3 {[%clk 0:03:04.6]} 5... e6
{[%clk 0:02:59.6]} 6. g4 {[%clk 0:03:05.7]} 6... Bg6 {[%clk 0:03:00.5]} 7. h4
{[%clk 0:03:07.6]} 7... h5 {[%clk 0:02:59.3]} 8. g5 {[%clk 0:03:08.9]} 8... Nfd7
{[%clk 0:02:59.6]} 9. Bd3 {[%clk 0:03:10.2]} 9... Bxd3 {[%clk 0:02:52.8]} 10.
Qxd3 {[%clk 0:03:12.1]} 10... g6 {[%clk 0:02:54.1]} 11. Nge2 {[%clk 0:03:09.9]}
11... Bg7 {[%clk 0:02:51.8]} 12. e4 {[%clk 0:03:10.2]} 12... c6 {[%clk
0:02:47.2]} 13. O-O-O {[%clk 0:03:10.8]} 13... O-O {[%clk 0:02:39.4]} 14. Bd6
{[%clk 0:03:11.4]} 14... Re8 {[%clk 0:02:39.3]} 15. e5 {[%clk 0:03:12.9]} 15...
c5 {[%clk 0:02:33.2]} 16. f4 {[%clk 0:03:12.4]} 16... cxd4 {[%clk 0:02:21.9]}
17. Nxd4 {[%clk 0:03:14.3]} 17... Nc6 {[%clk 0:02:22.5]} 18. Nce2 {[%clk
0:03:13.8]} 18... Rc8 {[%clk 0:02:22.2]} 19. Kb1 {[%clk 0:03:13.9]} 19... Nxd4
{[%clk 0:02:21.8]} 20. Nxd4 {[%clk 0:03:15.8]} 20... Nc5 {[%clk 0:02:21.8]} 21.
Bxc5 {[%clk 0:02:57.6]} 21... Rxc5 {[%clk 0:02:22.2]} 22. c3 {[%clk 0:02:58.5]}
22... b5 {[%clk 0:02:16.1]} 23. Rd2 {[%clk 0:02:59.7]} 23... Qb6 {[%clk
0:02:13.1]} 24. Rhd1 {[%clk 0:03:01.1]} 24... a5 {[%clk 0:02:07.4]} 25. Qe3
{[%clk 0:02:54.9]} 25... Rc4 {[%clk 0:02:03.2]} 26. b3 {[%clk 0:02:55.3]} 26...
Rc7 {[%clk 0:02:00.6]} 27. Rc2 {[%clk 0:02:56.7]} 27... Rec8 {[%clk 0:02:01]}
28. Rdc1 {[%clk 0:02:55.8]} 28... Bf8 {[%clk 0:02:00.5]} 29. Qd3 {[%clk
0:02:54.9]} 29... Ba3 {[%clk 0:01:47.4]} 30. Qxb5 {[%clk 0:02:38.3]} 30... Qxb5
{[%clk 0:01:39.9]} 31. Nxb5 {[%clk 0:02:40.2]} 31... Bxc1 {[%clk 0:01:41.2]} 32.
Kxc1 {[%clk 0:02:42.1]} 32... Rc5 {[%clk 0:01:34.5]} 33. a4 {[%clk 0:02:43.5]}
33... Kf8 {[%clk 0:01:33.4]} 34. Kd2 {[%clk 0:02:44.7]} 34... Ke7 {[%clk
0:01:33.5]} 35. Kd3 {[%clk 0:02:46.2]} 35... Rb8 {[%clk 0:01:32.5]} 36. Kd4
{[%clk 0:02:41.2]} 36... Rc6 {[%clk 0:01:28.6]} 37. Rb2 {[%clk 0:02:37.4]} 37...
Rbb6 {[%clk 0:01:28.3]} 38. Rc2 {[%clk 0:02:10.9]} 38... Rb8 {[%clk 0:01:27.4]}
39. Rb2 {[%clk 0:02:12.3]} 39... Kd7 {[%clk 0:01:26]} 40. Nd6 {[%clk 0:02:11]}
40... Ke7 {[%clk 0:01:11.7]} 41. b4 {[%clk 0:02:07.7]} 41... Rxd6 {[%clk
0:00:36.3]} 42. exd6+ {[%clk 0:02:06.5]} 42... Kxd6 {[%clk 0:00:37.3]} 43. b5
{[%clk 0:01:56.8]} 43... Rb7 {[%clk 0:00:27.4]} 44. b6 {[%clk 0:01:50.1]} 44...
Kc6 {[%clk 0:00:27.9]} 45. Ke5 {[%clk 0:01:44.5]} 45... Rxb6 {[%clk 0:00:20.1]}
46. Rxb6+ {[%clk 0:01:45.4]} 46... Kxb6 {[%clk 0:00:22]} 47. Kd6 {[%clk
0:01:41.5]} 47... Kb7 {[%clk 0:00:19.2]} 48. Ke7 {[%clk 0:01:42.6]} 48... Kc6
{[%clk 0:00:19.4]} 49. Kxf7 {[%clk 0:01:43.9]} 49... Kd6 {[%clk 0:00:20.1]} 50.
Kxg6 {[%clk 0:01:44.3]} 50... e5 {[%clk 0:00:21.3]} 51. f5 {[%clk 0:01:44]}
51... e4 {[%clk 0:00:20.2]} 52. f6 {[%clk 0:01:45.1]} 1-0

[Event "*** Titled Tuesday Blitz AM"]
[Site "Chess.com"]
[Date "2020.01.07"]
[Round "5"]
[White "enriquetejedor"]
[Black "StephenDedalus83"]
[Result "0-1"]
[WhiteElo "2477"]
[BlackElo "2697"]
[TimeControl "180+2"]
[EndTime "10:07:07 PST"]
[Termination "StephenDedalus83 won by resignation"]

1. d4 {[%clk 0:02:48.8]} 1... Nf6 {[%clk 0:01:30.7]} 2. Bg5 {[%clk 0:02:44.6]}
2... e6 {[%clk 0:01:29.7]} 3. e4 {[%clk 0:02:29.6]} 3... h6 {[%clk 0:01:30.6]}
4. Bxf6 {[%clk 0:02:29.6]} 4... Qxf6 {[%clk 0:01:32.5]} 5. c3 {[%clk 0:02:29.8]}
5... d5 {[%clk 0:01:33]} 6. e5 {[%clk 0:02:30.8]} 6... Qd8 {[%clk 0:01:33.5]} 7.
Bd3 {[%clk 0:02:32.1]} 7... c5 {[%clk 0:01:34.5]} 8. Ne2 {[%clk 0:02:30.1]} 8...
Qb6 {[%clk 0:01:35.1]} 9. Qb3 {[%clk 0:02:11.6]} 9... c4 {[%clk 0:01:34.9]} 10.
Qxb6 {[%clk 0:02:12.5]} 10... axb6 {[%clk 0:01:36.4]} 11. Bc2 {[%clk 0:02:14.4]}
11... b5 {[%clk 0:01:37.8]} 12. Nd2 {[%clk 0:02:13.3]} 12... Nc6 {[%clk
0:01:34.4]} 13. O-O {[%clk 0:02:09.6]} 13... b4 {[%clk 0:01:35.3]} 14. cxb4
{[%clk 0:01:49.2]} 14... Nxb4 {[%clk 0:01:35.4]} 15. Bb1 {[%clk 0:01:45.9]}
15... Bd7 {[%clk 0:01:33.6]} 16. Nc3 {[%clk 0:01:38.1]} 16... Be7 {[%clk
0:01:31.7]} 17. f4 {[%clk 0:01:36]} 17... g6 {[%clk 0:01:30.5]} 18. a3 {[%clk
0:01:30.6]} 18... Nc6 {[%clk 0:01:29.4]} 19. Nf3 {[%clk 0:01:28.1]} 19... h5
{[%clk 0:01:22.4]} 20. Bc2 {[%clk 0:01:21.7]} 20... O-O {[%clk 0:01:22.1]} 21.
g3 {[%clk 0:01:14.6]} 21... Rfb8 {[%clk 0:01:21.1]} 22. h3 {[%clk 0:01:00.6]}
22... b5 {[%clk 0:01:21.8]} 23. g4 {[%clk 0:01:01.8]} 23... hxg4 {[%clk
0:01:22.3]} 24. hxg4 {[%clk 0:01:03.7]} 24... b4 {[%clk 0:01:23.6]} 25. axb4
{[%clk 0:01:05.1]} 25... Nxb4 {[%clk 0:01:24.5]} 26. Rac1 {[%clk 0:01:01.8]}
26... Na2 {[%clk 0:01:18.9]} 27. Rb1 {[%clk 0:00:59.1]} 27... Bb4 {[%clk
0:01:08.7]} 28. Nd1 {[%clk 0:00:54.6]} 28... Ba5 {[%clk 0:01:07.3]} 29. f5
{[%clk 0:00:44.5]} 29... Nb4 {[%clk 0:01:07.5]} 30. fxe6 {[%clk 0:00:30.1]}
30... Bxe6 {[%clk 0:01:08]} 31. Rf2 {[%clk 0:00:21.3]} 31... Nxc2 {[%clk
0:01:06.5]} 32. Rxc2 {[%clk 0:00:23.2]} 32... Bxg4 {[%clk 0:01:07.7]} 33. Nh4
{[%clk 0:00:16.6]} 33... Bb6 {[%clk 0:01:07.5]} 34. Rd2 {[%clk 0:00:09.9]} 34...
Ra2 {[%clk 0:01:04.9]} 35. Nc3 {[%clk 0:00:08.5]} 35... Ra5 {[%clk 0:01:05.2]}
36. Kg2 {[%clk 0:00:04.5]} 36... Be6 {[%clk 0:01:04.6]} 37. Nf3 {[%clk
0:00:03.8]} 37... Rba8 {[%clk 0:01:02.9]} 38. b3 {[%clk 0:00:04.6]} 38... Ra3
{[%clk 0:00:53.8]} 39. Nb5 {[%clk 0:00:03.6]} 39... Rxb3 {[%clk 0:00:54]} 40.
Rxb3 {[%clk 0:00:03.8]} 40... cxb3 {[%clk 0:00:55.9]} 41. Nc3 {[%clk 0:00:03]}
41... Ba5 {[%clk 0:00:55.9]} 42. Rd3 {[%clk 0:00:04.2]} 42... Bxc3 {[%clk
0:00:56.5]} 43. Rxc3 {[%clk 0:00:06.1]} 43... Rb8 {[%clk 0:00:57.6]} 44. Nd2
{[%clk 0:00:04.8]} 44... b2 {[%clk 0:00:58.9]} 45. Kf2 {[%clk 0:00:03.6]} 45...
b1=Q {[%clk 0:00:57.1]} 46. Nxb1 {[%clk 0:00:04.7]} 46... Rxb1 {[%clk
0:00:58.9]} 47. Kf3 {[%clk 0:00:04.8]} 47... Kg7 {[%clk 0:00:59.8]} 48. Kf4
{[%clk 0:00:05.7]} 48... Rf1+ {[%clk 0:00:59.9]} 49. Ke3 {[%clk 0:00:05.8]}
49... g5 {[%clk 0:01:00.1]} 0-1

[Event "*** Titled Tuesday Blitz AM"]
[Site "Chess.com"]
[Date "2020.01.07"]
[Round "5"]
[White "alex_zapata"]
[Black "WorldChampionBulletChess"]
[Result "1-0"]
[WhiteElo "2295"]
[BlackElo "2077"]
[TimeControl "180+2"]
[EndTime "10:07:09 PST"]
[Termination "alex_zapata won on time"]

1. e4 {[%clk 0:02:35]} 1... d5 {[%clk 0:02:51]} 2. d4 {[%clk 0:02:31.7]} 2...
dxe4 {[%clk 0:02:51.8]} 3. Nc3 {[%clk 0:02:33.1]} 3... Nf6 {[%clk 0:02:52.5]} 4.
Bg5 {[%clk 0:02:31.2]} 4... Bf5 {[%clk 0:02:47]} 5. f3 {[%clk 0:02:26.7]} 5...
exf3 {[%clk 0:02:17.8]} 6. Qxf3 {[%clk 0:02:28.6]} 6... Bc8 {[%clk 0:02:19.1]}
7. O-O-O {[%clk 0:02:27.8]} 7... e6 {[%clk 0:02:19.5]} 8. Bc4 {[%clk 0:02:21.2]}
8... Be7 {[%clk 0:02:20.4]} 9. Nge2 {[%clk 0:02:20.8]} 9... c6 {[%clk
0:02:20.7]} 10. g4 {[%clk 0:02:20.3]} 10... b5 {[%clk 0:02:21]} 11. Bxb5 {[%clk
0:02:12.2]} 11... Qb6 {[%clk 0:02:21.6]} 12. Bd3 {[%clk 0:02:07.4]} 12... Nbd7
{[%clk 0:02:14.4]} 13. h4 {[%clk 0:02:07.6]} 13... Bb7 {[%clk 0:02:11.7]} 14.
Bxf6 {[%clk 0:02:00.3]} 14... Nxf6 {[%clk 0:02:11.8]} 15. g5 {[%clk 0:02:01.6]}
15... Nd5 {[%clk 0:02:12.4]} 16. Nxd5 {[%clk 0:01:57.8]} 16... cxd5 {[%clk
0:02:11]} 17. Rhf1 {[%clk 0:01:56]} 17... f6 {[%clk 0:02:04.1]} 18. Qh5+ {[%clk
0:01:47.5]} 18... Kd7 {[%clk 0:02:00.9]} 19. gxf6 {[%clk 0:01:35.1]} 19... gxf6
{[%clk 0:02:02.8]} 20. Nc3 {[%clk 0:01:23.3]} 20... Ba6 {[%clk 0:01:27.6]} 21.
Rfe1 {[%clk 0:01:12.1]} 21... Bxd3 {[%clk 0:01:27.3]} 22. Rxd3 {[%clk 0:01:14]}
22... Raf8 {[%clk 0:01:14.3]} 23. Nxd5 {[%clk 0:01:02.9]} 23... exd5 {[%clk
0:01:02.2]} 24. Qxd5+ {[%clk 0:01:04.8]} 24... Ke8 {[%clk 0:00:33.6]} 25. Rde3
{[%clk 0:01:04.3]} 25... Rf7 {[%clk 0:00:34.2]} 26. Qa8+ {[%clk 0:00:46.1]}
26... Qd8 {[%clk 0:00:34.5]} 27. Qc6+ {[%clk 0:00:47.5]} 27... Kf8 {[%clk
0:00:30.7]} 28. h5 {[%clk 0:00:44.2]} 28... h6 {[%clk 0:00:30.2]} 29. Rxe7
{[%clk 0:00:29.6]} 29... Rxe7 {[%clk 0:00:30.1]} 30. Qxf6+ {[%clk 0:00:30.3]}
30... Ke8 {[%clk 0:00:25.1]} 31. Qg6+ {[%clk 0:00:30.8]} 31... Kd7 {[%clk
0:00:27]} 32. Qf5+ {[%clk 0:00:30]} 32... Kc7 {[%clk 0:00:21.1]} 33. Qc5+ {[%clk
0:00:30.4]} 33... Kd7 {[%clk 0:00:20.1]} 34. Qd5+ {[%clk 0:00:21.9]} 34... Ke8
{[%clk 0:00:18.7]} 35. Qc6+ {[%clk 0:00:23]} 35... Qd7 {[%clk 0:00:17.6]} 36.
Qa8+ {[%clk 0:00:19]} 36... Kf7 {[%clk 0:00:14.9]} 37. Qf3+ {[%clk 0:00:18.2]}
37... Ke8 {[%clk 0:00:14.2]} 38. Qa8+ {[%clk 0:00:18.3]} 38... Kf7 {[%clk
0:00:12.8]} 39. Qf3+ {[%clk 0:00:16.5]} 39... Kg7 {[%clk 0:00:13.7]} 40. Rg1+
{[%clk 0:00:16.8]} 40... Kh7 {[%clk 0:00:11]} 41. Qd3+ {[%clk 0:00:16.2]} 41...
Re4 {[%clk 0:00:03.9]} 42. Qxe4+ {[%clk 0:00:15.9]} 1-0

[Event "*** Titled Tuesday Blitz AM"]
[Site "Chess.com"]
[Date "2020.01.07"]
[Round "5"]
[White "AntonSmirnov"]
[Black "manitodeplomo"]
[Result "0-1"]
[WhiteElo "2883"]
[BlackElo "2709"]
[TimeControl "180+2"]
[EndTime "10:07:11 PST"]
[Termination "manitodeplomo won by checkmate"]

1. e4 {[%clk 0:03:01.9]} 1... c5 {[%clk 0:02:58.6]} 2. Nf3 {[%clk 0:03:02.8]}
2... e6 {[%clk 0:02:59.3]} 3. d4 {[%clk 0:03:03.8]} 3... cxd4 {[%clk 0:03:01.2]}
4. Nxd4 {[%clk 0:03:05.5]} 4... a6 {[%clk 0:03:00.8]} 5. c4 {[%clk 0:03:06.6]}
5... Nf6 {[%clk 0:03:01.1]} 6. Nc3 {[%clk 0:03:07.6]} 6... Bb4 {[%clk
0:03:02.4]} 7. Qd3 {[%clk 0:03:08.4]} 7... O-O {[%clk 0:02:54.4]} 8. Be2 {[%clk
0:02:56.5]} 8... Qc7 {[%clk 0:02:41.3]} 9. a3 {[%clk 0:02:40.7]} 9... Bxc3+
{[%clk 0:02:40.7]} 10. bxc3 {[%clk 0:02:40.6]} 10... d6 {[%clk 0:02:38.4]} 11.
Bg5 {[%clk 0:02:26.9]} 11... Nbd7 {[%clk 0:02:36.5]} 12. Qe3 {[%clk 0:02:27]}
12... b6 {[%clk 0:02:14.1]} 13. O-O {[%clk 0:02:26.6]} 13... Bb7 {[%clk
0:02:15.4]} 14. f3 {[%clk 0:02:26.5]} 14... Rfe8 {[%clk 0:02:11.3]} 15. Rfd1
{[%clk 0:02:26]} 15... Rac8 {[%clk 0:02:04.7]} 16. Kh1 {[%clk 0:02:23.6]} 16...
d5 {[%clk 0:02:02.3]} 17. cxd5 {[%clk 0:02:14]} 17... exd5 {[%clk 0:02:04.2]}
18. Nf5 {[%clk 0:02:15.2]} 18... dxe4 {[%clk 0:02:00.4]} 19. Bxf6 {[%clk
0:02:09.7]} 19... Nxf6 {[%clk 0:01:28.7]} 20. Qg5 {[%clk 0:02:09.3]} 20... g6
{[%clk 0:01:24.9]} 21. Nh6+ {[%clk 0:01:35.6]} 21... Kg7 {[%clk 0:01:21.2]} 22.
Nf5+ {[%clk 0:01:36.8]} 22... Kg8 {[%clk 0:01:21.8]} 23. Qxf6 {[%clk 0:01:21.5]}
23... gxf5 {[%clk 0:01:19.4]} 24. Qg5+ {[%clk 0:01:22.4]} 24... Kf8 {[%clk
0:01:15.2]} 25. fxe4 {[%clk 0:01:17.1]} 25... Bxe4 {[%clk 0:01:12.6]} 26. Bxa6
{[%clk 0:00:59.6]} 26... Rcd8 {[%clk 0:01:09.4]} 27. Bb5 {[%clk 0:00:59.1]}
27... Rxd1+ {[%clk 0:00:31.5]} 28. Rxd1 {[%clk 0:01:01]} 28... Re7 {[%clk
0:00:32.8]} 29. Qh6+ {[%clk 0:00:37]} 29... Kg8 {[%clk 0:00:32.9]} 30. Qg5+
{[%clk 0:00:38.1]} 30... Kf8 {[%clk 0:00:33.4]} 31. h3 {[%clk 0:00:39]} 31... f4
{[%clk 0:00:30.3]} 32. Qf6 {[%clk 0:00:32.7]} 32... Kg8 {[%clk 0:00:26.9]} 33.
Be2 {[%clk 0:00:26.1]} 33... Bxg2+ {[%clk 0:00:21.6]} 34. Kxg2 {[%clk
0:00:24.9]} 34... Rxe2+ {[%clk 0:00:22.5]} 35. Kf1 {[%clk 0:00:25.9]} 35... Re8
{[%clk 0:00:21.8]} 36. Qg5+ {[%clk 0:00:23.3]} 36... Kf8 {[%clk 0:00:22.3]} 37.
Qh6+ {[%clk 0:00:24.1]} 37... Kg8 {[%clk 0:00:23.1]} 38. Qg5+ {[%clk 0:00:17.9]}
38... Kf8 {[%clk 0:00:23.9]} 39. Qh6+ {[%clk 0:00:17.2]} 39... Kg8 {[%clk
0:00:23.1]} 40. Kg1 {[%clk 0:00:10.3]} 40... Re6 {[%clk 0:00:20.1]} 41. Qh4
{[%clk 0:00:11]} 41... Qc5+ {[%clk 0:00:19.6]} 42. Kh1 {[%clk 0:00:10.8]} 42...
Qc6+ {[%clk 0:00:19.8]} 43. Kg1 {[%clk 0:00:12.2]} 43... Rg6+ {[%clk 0:00:20.6]}
44. Kf1 {[%clk 0:00:11.8]} 44... Qg2+ {[%clk 0:00:21.4]} 45. Ke1 {[%clk
0:00:13.1]} 45... Re6# {[%clk 0:00:22.4]} 0-1